bitfinex/quotes_BTCUSD_20251224
["timestamp","ask_amount","ask_price","bid_price","bid_amount"]
[1766594162329,0.0685425,87537.0,87524.0,0.01188]
[1766594162499,0.011424,87535.0,87524.0,0.01188]
[1766594162716,0.01142374,87537.0,87519.0,0.00011]
[1766594162717,0.038865,87525.0,87519.0,0.00011]
[1766594162921,0.01142543,87524.0,87519.0,0.00011]
[1766594163133,0.0274397,87523.0,87519.0,0.00011]
[1766594163331,0.01628916,87523.0,87519.0,0.00011]
[1766594164145,0.01628916,87523.0,87507.0,0.01142765]
[1766594164147,0.01142687,87513.0,87501.0,0.00011]
[1766594164351,0.01188,87512.0,87493.0,0.01142948]
[1766594164695,0.01188,87512.0,87492.0,0.01142961]
[1766594164696,0.05713699,87509.0,87492.0,0.01142961]
[1766594164889,0.01153713,87511.0,87492.0,0.01142961]
[1766594164890,0.00011,87511.0,87494.0,0.0571463]
[1766594165095,1.33473,87515.0,87505.0,0.01142791]
[1766594165096,0.01188,87515.0,87505.0,0.01142791]
[1766594165300,0.01188,87515.0,87498.0,0.01142883]
[1766594165507,0.01188,87515.0,87507.0,0.01142765]
[1766594165733,0.00021907,87515.0,87511.0,0.01142713]
[1766594165932,0.00021907,87515.0,87502.0,0.01153831]
[1766594166083,0.00021907,87515.0,87502.0,0.01199]
[1766594166313,0.06877879,87515.0,87502.0,0.00011]
[1766594166483,0.01164568,87515.0,87502.0,0.00011]
[1766594166685,0.00021907,87515.0,87502.0,0.06867973]
[1766594166908,0.00021907,87515.0,87503.0,0.01055373]
[1766594167115,0.00021907,87515.0,87504.0,0.01055373]
[1766594167338,0.00021907,87515.0,87505.0,0.01055373]
[1766594167505,0.00021907,87515.0,87506.0,3.73e-06]
[1766594167506,0.01164568,87515.0,87506.0,3.73e-06]
[1766594167712,0.0274397,87509.0,87502.0,0.00011]
[1766594167908,0.0125703,87509.0,87502.0,0.00011]
[1766594168311,0.00021907,87515.0,87509.0,0.000549]
[1766594168922,0.00021907,87515.0,87502.0,0.01153831]
[1766594169184,0.00021907,87515.0,87503.0,0.01142817]
[1766594169312,0.00021907,87515.0,87502.0,0.01153831]
[1766594169313,0.00011,87522.0,87515.0,0.01142661]
[1766594169536,0.3904,87544.0,87522.0,0.00011]
[1766594169537,0.01184,87531.0,87522.0,0.00011]
[1766594169940,0.01184,87531.0,87516.0,0.01142648]
[1766594170120,0.01184,87531.0,87517.0,0.01142635]
[1766594170333,0.00055,87517.0,87505.0,0.01142791]
[1766594170648,0.01184,87522.0,87507.0,0.01142765]
[1766594170845,0.01184,87522.0,87508.0,0.01142752]
[1766594171058,0.01184,87522.0,87509.0,0.01142739]
[1766594171254,0.01184,87522.0,87508.0,0.01142752]
[1766594171459,0.01184,87522.0,87509.0,0.01142739]
[1766594171658,0.01184,87522.0,87510.0,0.01142726]
[1766594171994,0.01184,87522.0,87512.0,0.011427]
[1766594172196,0.01184,87522.0,87504.0,0.02326804]
[1766594172400,0.01184,87522.0,87507.0,0.01142765]
[1766594172547,0.00440581,87522.0,87508.0,0.01142752]
[1766594172754,0.00440581,87522.0,87504.0,0.02326804]
[1766594172755,0.01142622,87518.0,87503.0,0.01142817]
[1766594172954,0.01142595,87520.0,87498.0,0.00010641]
[1766594172955,0.01142635,87517.0,87498.0,0.00010641]
[1766594173186,0.0274397,87511.0,87498.0,0.00010641]
[1766594173392,0.01184,87510.0,87499.0,0.0114287]
[1766594173646,0.01628796,87511.0,87498.0,0.01142883]
[1766594173647,0.02812796,87511.0,87498.0,0.01142883]
[1766594173936,0.02812796,87511.0,87499.0,0.0114287]
[1766594174472,0.03955509,87511.0,87497.0,0.01142896]
[1766594174589,0.03955509,87511.0,87491.0,0.01153974]
[1766594174590,0.01142726,87510.0,87491.0,0.01153974]
[1766594174795,0.01142726,87510.0,87498.0,0.01142883]
[1766594174796,1.33473,87510.0,87498.0,0.01142883]
[1766594174992,0.02823442,87511.0,87501.0,0.01142844]
[1766594175192,0.02823442,87511.0,87500.0,0.01142857]
[1766594175870,0.01194646,87511.0,87504.0,0.01142804]
[1766594176083,1.33473,87498.0,87474.0,0.06070378]
[1766594176287,0.00055,87474.0,87462.0,0.04583]
[1766594176490,0.0114317,87476.0,87462.0,0.04583]
[1766594176692,0.01143118,87480.0,87464.0,0.01143327]
[1766594176952,0.01143131,87479.0,87463.0,0.01184]
[1766594177149,0.0274397,87510.0,87480.0,0.00055]
[1766594177150,0.02326974,87491.0,87480.0,0.00055]
[1766594177351,0.01184,87491.0,87469.0,0.24008463]
[1766594177554,0.02326974,87491.0,87480.0,0.00035529]
[1766594177779,0.08041851,87491.0,87480.0,0.00035529]
[1766594177987,0.0114304,87486.0,87469.0,0.01143262]
[1766594178204,0.0114304,87486.0,87462.0,0.22877967]
[1766594178205,0.01143066,87484.0,87468.0,0.02327275]
[1766594178408,0.01184,87484.0,87473.0,0.01143209]
[1766594178566,0.01184,87484.0,87472.0,0.06859334]
[1766594178972,0.01184,87484.0,87473.0,0.06859256]
[1766594179385,0.01184,87484.0,87474.0,0.01143196]
[1766594179601,0.01184,87484.0,87475.0,0.01054734]
[1766594179843,0.01184,87484.0,87476.0,0.01054734]
[1766594180046,0.01184,87484.0,87477.0,0.01054734]
[1766594180184,0.01184,87484.0,87478.0,0.01054734]
[1766594180386,0.01184,87484.0,87479.0,0.01054734]
[1766594180641,0.01184,87484.0,87480.0,0.01054734]
[1766594180843,0.01184,87484.0,87468.0,0.01143275]
[1766594180844,0.01143079,87483.0,87461.0,0.01143366]
[1766594181049,0.03199726,87477.0,87461.0,0.01143366]
[1766594181345,0.04383726,87477.0,87465.0,0.05716541]
[1766594181705,0.0114317,87476.0,87460.0,0.01184]
[1766594181991,0.0114317,87476.0,87460.0,0.02327379]
[1766594182195,0.04383726,87477.0,87464.0,0.01143327]
[1766594182395,0.04383726,87477.0,87463.0,0.01184]
[1766594182396,0.05716066,87473.0,87463.0,0.01184]
[1766594182603,0.05716066,87473.0,87458.0,0.00025076]
[1766594182604,1.79206043,87473.0,87458.0,0.00025076]
[1766594182800,1.79206043,87473.0,87458.0,7.6e-07]
[1766594182801,0.01143366,87461.0,87458.0,7.6e-07]
[1766594183042,0.01143562,87446.0,87414.0,0.0004]
[1766594183254,1.33473,87460.0,87414.0,0.0004]
[1766594183255,0.44589834,87440.0,87429.0,0.01143785]
[1766594183464,0.44589834,87440.0,87427.0,0.01183811]
[1766594183465,0.01184,87450.0,87439.0,0.01143654]
[1766594183694,0.01143419,87457.0,87434.0,0.08046298]
[1766594183695,0.03199726,87449.0,87434.0,0.08046298]
[1766594183902,0.03199726,87449.0,87433.0,0.01143732]
[1766594183903,0.04383726,87449.0,87433.0,0.01143732]
[1766594184108,0.04383726,87449.0,87432.0,0.02327745]
[1766594184109,0.04383726,87449.0,87438.0,0.01143667]
[1766594184322,0.03199726,87448.0,87439.0,0.06861911]
[1766594184560,0.01184,87454.0,87440.0,0.01143641]
[1766594184769,0.03199726,87448.0,87440.0,0.01179126]
[1766594184943,0.03199726,87448.0,87440.0,0.00035485]
[1766594185356,0.02327458,87454.0,87443.0,0.01143602]
[1766594185357,0.01184,87454.0,87443.0,0.01143602]
[1766594185560,0.06359161,87485.0,87440.0,0.00035485]
[1766594185561,0.03199726,87463.0,87455.0,0.01143445]
[1766594185714,0.01184,87462.0,87449.0,0.01143523]
[1766594186122,0.02286877,87461.0,87452.0,0.01143484]
[1766594186324,0.02286877,87461.0,87450.0,0.0114351]
[1766594186535,0.01184,87462.0,87451.0,0.01143497]
[1766594186728,0.01184,87462.0,87455.0,0.06860656]
[1766594187006,0.05716147,87472.0,87453.0,0.05717342]
[1766594187007,0.02286877,87474.0,87453.0,0.01143471]
[1766594187245,0.02286877,87474.0,87447.0,0.01184]
[1766594187246,0.01184,87473.0,87463.0,0.0114334]
[1766594187422,0.02286877,87472.0,87462.0,0.01143353]
[1766594187622,0.01184,87472.0,87466.0,0.01143301]
[1766594187824,0.01184,87478.0,87469.0,0.01143262]
[1766594188032,0.01184,87478.0,87463.0,0.01184]
[1766594188033,0.0114317,87476.0,87463.0,0.01184]
[1766594188233,0.02286877,87474.0,87463.0,0.01184]
[1766594188479,0.02286877,87474.0,87463.0,0.0232734]
[1766594188732,0.02286877,87474.0,87463.0,0.01184]
[1766594188883,0.01143209,87473.0,87463.0,0.01184]
[1766594189082,0.02286877,87474.0,87462.0,0.00011]
[1766594189083,0.00044377,87463.0,87462.0,0.00011]
[1766594189284,0.00044377,87463.0,87449.0,0.01143523]
[1766594189285,0.00010639,87463.0,87454.0,0.01018408]
[1766594189509,0.00010639,87463.0,87455.0,0.01143445]
[1766594189722,0.00010639,87463.0,87457.0,0.06860506]
[1766594189932,0.01184,87471.0,87460.0,0.01143379]
[1766594190136,0.0137197,87468.0,87461.0,0.01143366]
[1766594190467,0.01184,87471.0,87465.0,0.01143314]
[1766594190598,0.01184,87471.0,87468.0,0.000106]
[1766594191001,0.01184,87471.0,87465.0,0.01153953]
[1766594191199,0.01129,87471.0,87465.0,0.00010639]
[1766594192794,0.01129,87471.0,87466.0,0.01052495]
[1766594193035,0.01129,87471.0,87467.0,0.01052495]
[1766594193252,0.0137197,87475.0,87468.0,0.01052495]
[1766594193253,0.01184,87472.0,87468.0,0.01052495]
[1766594193457,0.0137197,87475.0,87469.0,0.01052495]
[1766594193688,0.01184,87476.0,87465.0,0.00010639]
[1766594193689,0.01154092,87482.0,87465.0,0.00010639]
[1766594193690,5.24e-06,87488.0,87475.0,0.000106]
[1766594193914,0.65478192,87500.0,87475.0,0.000106]
[1766594193915,5.24e-06,87489.0,87478.0,0.01143144]
[1766594194145,0.00011,87494.0,87481.0,0.06858604]
[1766594194366,0.000443,87481.0,87476.0,0.01184]
[1766594194627,0.01143,87489.0,87477.0,0.01052598]
[1766594194797,0.01143,87489.0,87478.0,0.01052598]
[1766594194798,0.0114304,87486.0,87478.0,0.01052598]
[1766594195007,0.0114304,87486.0,87479.0,0.01052598]
[1766594195234,0.01143,87489.0,87480.0,0.00997598]
[1766594195438,0.01143013,87488.0,87476.0,0.01184]
[1766594195640,0.0118,87491.0,87477.0,0.01143157]
[1766594195881,0.0118,87491.0,87476.0,0.08043022]
[1766594196048,0.0118,87491.0,87478.0,0.01143144]
[1766594196277,0.0118,87491.0,87481.0,0.06858631]
[1766594196431,0.0118,87491.0,87478.0,0.01143144]
[1766594196620,0.0118,87491.0,87477.0,0.06858942]
[1766594196836,0.0118,87491.0,87481.0,0.01143105]
[1766594197028,0.0118,87491.0,87480.0,0.01143118]
[1766594197284,0.0118,87491.0,87482.0,0.01143092]
[1766594197449,0.0118,87491.0,87481.0,0.01143105]
[1766594197654,0.0118,87491.0,87481.0,0.06858626]
[1766594197872,0.0118,87491.0,87480.0,0.01143118]
[1766594198078,0.0118,87491.0,87482.0,0.01143092]
[1766594198286,0.0118,87491.0,87481.0,0.06858631]
[1766594198456,0.0118,87491.0,87483.0,0.01143079]
[1766594198673,0.0118,87491.0,87482.0,0.01143092]
[1766594199026,0.0118,87491.0,87482.0,0.0685855]
[1766594199310,0.0118,87491.0,87370.0,0.21795956]
[1766594199312,0.01143275,87468.0,87443.0,0.05722542]
[1766594199511,0.01143275,87468.0,87442.0,0.04572]
[1766594199512,0.0137197,87458.0,87456.0,0.00011]
[1766594199751,0.0137197,87458.0,87456.0,0.01191]
[1766594200257,0.0708905,87458.0,87456.0,0.01191]
[1766594200452,0.0708905,87458.0,87456.0,0.011467]
[1766594200832,0.0137197,87458.0,87456.0,0.011467]
[1766594201252,0.0131707,87458.0,87442.0,0.11433675]
[1766594201439,0.08162229,87458.0,87443.0,0.0118]
[1766594201637,0.01143458,87454.0,87437.0,0.0114368]
[1766594201846,0.02445181,87458.0,87425.0,0.06863022]
[1766594201847,0.0137197,87444.0,87425.0,0.06863022]
[1766594202062,0.22870249,87451.0,87425.0,0.06863022]
[1766594202063,0.02515402,87456.0,87444.0,0.00055]
[1766594202408,0.0137197,87456.0,87444.0,0.00055]
[1766594202586,0.0137197,87456.0,87441.0,0.02323628]
[1766594202787,0.0137197,87456.0,87443.0,0.06861607]
[1766594202998,0.0137197,87456.0,87446.0,0.01143562]
[1766594203178,0.0114334,87463.0,87448.0,0.01143536]
[1766594203378,0.0118,87464.0,87450.0,0.0114351]
[1766594203619,0.01143353,87462.0,87451.0,0.0118]
[1766594204197,0.01143353,87462.0,87444.0,0.05719589]
[1766594204198,0.01143366,87461.0,87452.0,0.0118]
[1766594204356,0.0137197,87458.0,87452.0,0.011251]
[1766594204766,0.0137197,87458.0,87436.0,0.01143693]
[1766594204767,0.05717296,87454.0,87436.0,0.01143693]
[1766594204905,0.05717296,87454.0,87438.0,0.01143667]
[1766594204906,0.01143484,87452.0,87438.0,0.01143667]
[1766594205110,0.01143458,87454.0,87439.0,0.0118]
[1766594205314,1.39312445,87455.0,87439.0,0.0118]
[1766594205516,0.06860763,87454.0,87439.0,0.0118]
[1766594205718,0.01143458,87454.0,87439.0,0.0118]
[1766594206334,0.01143484,87452.0,87440.0,0.0118]
[1766594206535,2.22e-06,87454.0,87440.0,0.0118]
[1766594206769,2.66e-06,87448.0,87432.0,0.64225]
[1766594206969,2.66e-06,87448.0,87428.0,0.04576]
[1766594206970,0.05718078,87442.0,87428.0,0.04576]
[1766594207344,0.05718078,87442.0,87427.0,0.0004]
[1766594207345,0.0137197,87444.0,87427.0,0.0004]
[1766594207346,0.01143654,87439.0,87429.0,0.01057076]
[1766594207563,0.65478192,87440.0,87427.0,0.0004]
[1766594207564,0.05718991,87428.0,87427.0,0.0004]
[1766594207767,0.05718991,87428.0,87421.0,0.0004]
[1766594207768,0.01143837,87425.0,87424.0,0.00144]
[1766594207907,0.05719102,87427.0,87424.0,0.00144]
[1766594207908,0.06862913,87427.0,87424.0,0.00144]
[1766594208130,0.01143798,87428.0,87424.0,0.00081434]
[1766594208456,0.08234604,87430.0,87423.0,0.0118]
[1766594208610,0.00010643,87428.0,87423.0,0.0118]
[1766594209375,0.01143824,87426.0,87423.0,0.0118]
[1766594209600,0.01143824,87426.0,87421.0,0.0004]
[1766594209729,0.05719253,87424.0,87421.0,0.0004]
[1766594209961,0.05719253,87424.0,87421.0,0.0122]
[1766594210183,0.01143889,87421.0,87414.0,0.0004]
[1766594210409,0.0137197,87416.0,87414.0,0.0004]
[1766594210561,0.0022797,87415.0,87414.0,0.0004]
[1766594210774,0.05719485,87421.0,87414.0,0.0004]
[1766594210954,0.30107192,87424.0,87414.0,0.0004]
[1766594211179,0.06223767,87446.0,87414.0,0.0004]
[1766594211180,0.06862484,87432.0,87421.0,0.000549]
[1766594211378,0.06862484,87432.0,87415.0,0.01143968]
[1766594211379,0.01143759,87431.0,87420.0,0.0118]
[1766594211588,0.01143785,87429.0,87420.0,0.0118]
[1766594211998,4.3e-07,87428.0,87420.0,0.0118]
[1766594212197,0.22872424,87442.0,87414.0,0.0004]
[1766594212198,0.01143562,87446.0,87427.0,0.06862853]
[1766594212408,0.01143802,87448.0,87433.0,0.01143732]
[1766594212742,0.01143549,87447.0,87434.0,0.0118]
[1766594212917,0.01143802,87448.0,87425.0,0.01143837]
[1766594212918,0.000106,87433.0,87425.0,0.01143837]
[1766594213238,0.00035529,87433.0,87421.0,0.02323889]
[1766594213457,0.00035529,87433.0,87421.0,0.0118]
[1766594213684,0.00035529,87433.0,87421.0,0.02323889]
[1766594213860,0.00035529,87433.0,87428.0,0.01143798]
[1766594214068,0.00035529,87433.0,87430.0,0.06862621]
[1766594214269,1e-08,87433.0,87432.0,0.05718729]
[1766594214467,1.38169,87453.0,87439.0,0.05718209]
[1766594214668,1.38169,87453.0,87439.0,0.06898209]
[1766594214947,1.39312471,87453.0,87439.0,0.02323654]
[1766594215123,0.0137197,87444.0,87422.0,0.01143876]
[1766594215332,0.0137197,87444.0,87424.0,0.0114385]
[1766594215333,0.01154254,87439.0,87424.0,0.0114385]
[1766594215537,0.01154254,87439.0,87429.0,0.00011]
[1766594215538,0.01143654,87439.0,87429.0,0.00011]
[1766594215694,0.01143667,87438.0,87429.0,0.00011]
[1766594216119,0.06862095,87437.0,87429.0,0.00011]
[1766594216320,0.0137197,87430.0,87429.0,0.00011]
[1766594216523,0.01143798,87428.0,87414.0,0.0004]
[1766594216729,0.00035507,87428.0,87415.0,0.0118]
[1766594216947,1.39312745,87432.0,87415.0,0.0118]
[1766594216948,1.39312562,87446.0,87428.0,0.01143798]
[1766594217278,0.0137197,87439.0,87433.0,0.01143732]
[1766594217503,2.66e-06,87448.0,87439.0,0.000194]
[1766594217701,2.66e-06,87448.0,87437.0,0.06862079]
[1766594217910,2.66e-06,87448.0,87439.0,0.0118]
[1766594218124,0.0137197,87444.0,87439.0,0.0118]
[1766594218333,0.06861704,87442.0,87439.0,0.0118]
[1766594218542,0.01143615,87442.0,87439.0,0.0118]
[1766594218782,0.0137197,87444.0,87442.0,0.000194]
[1766594218954,0.0137197,87444.0,87439.0,0.0118]
[1766594219155,0.0137197,87444.0,87442.0,0.00025062]
[1766594220490,0.0137197,87444.0,87442.0,6.2e-07]
[1766594220701,2.66e-06,87448.0,87442.0,6.2e-07]
[1766594220871,2.66e-06,87448.0,87444.0,0.000194]
[1766594221075,2.66e-06,87448.0,87442.0,6.2e-07]
[1766594221275,2.66e-06,87448.0,87443.0,0.010543]
[1766594221561,2.66e-06,87448.0,87402.0,0.45765451]
[1766594221562,2.66e-06,87448.0,87403.0,0.01144125]
[1766594221563,0.01143889,87421.0,87403.0,0.01144125]
[1766594221803,0.01143863,87423.0,87414.0,0.00075507]
[1766594221804,0.0137197,87417.0,87414.0,0.00075507]
[1766594222010,0.01143837,87425.0,87414.0,0.00075507]
[1766594222011,0.0137197,87425.0,87417.0,0.00055]
[1766594222176,0.0137197,87425.0,87414.0,0.00075507]
[1766594222546,1.70822095,87432.0,87414.0,0.00075507]
[1766594222547,0.01143719,87434.0,87419.0,0.01143916]
[1766594222730,0.0118,87437.0,87422.0,0.06863257]
[1766594222731,0.0137197,87430.0,87422.0,0.06863257]
[1766594222933,0.0027357,87430.0,87423.0,0.01143863]
[1766594223168,0.0027357,87430.0,87423.0,0.0686318]
[1766594223367,0.06861973,87439.0,87423.0,0.0686318]
[1766594223571,0.0137197,87430.0,87422.0,0.01143876]
[1766594223721,0.0137197,87430.0,87424.0,0.0118]
[1766594224300,0.02515742,87430.0,87424.0,0.0118]
[1766594224527,0.08234604,87430.0,87424.0,0.011251]
[1766594224925,0.01143785,87429.0,87424.0,0.011251]
[1766594225146,0.01143785,87429.0,87414.0,0.00075507]
[1766594225147,0.05719263,87424.0,87414.0,0.00075507]
[1766594225303,0.05719333,87423.0,87414.0,0.00075507]
[1766594225509,0.01143889,87421.0,87414.0,0.00075507]
[1766594225847,0.22876804,87425.0,87414.0,0.00075507]
[1766594225848,0.0686342,87420.0,87414.0,0.00075507]
[1766594226062,0.0686342,87420.0,87405.0,9.9e-07]
[1766594226063,0.01143981,87414.0,87405.0,9.9e-07]
[1766594226265,0.00035507,87414.0,87405.0,9.9e-07]
[1766594226514,0.00035507,87414.0,87405.0,0.01180099]
[1766594226731,0.05719974,87413.0,87405.0,0.01180099]
[1766594226880,0.0114406,87408.0,87405.0,9.9e-07]
[1766594227059,0.0114406,87408.0,87404.0,0.0001]
[1766594227060,0.05720496,87405.0,87404.0,9.9e-07]
[1766594227262,0.01144073,87407.0,87404.0,9.9e-07]
[1766594227482,0.01144033,87410.0,87407.0,0.000549]
[1766594227886,0.01144046,87409.0,87398.0,0.0118]
[1766594228066,0.0114402,87411.0,87398.0,0.0118]
[1766594228067,0.06864172,87411.0,87398.0,0.0118]
[1766594228265,0.01143942,87417.0,87411.0,0.00055]
[1766594228473,0.24021517,87422.0,87411.0,0.00055]
[1766594228474,0.0114385,87424.0,87411.0,0.00010643]
[1766594228795,0.01176,87422.0,87411.0,0.00010643]
[1766594228951,1.49123,87425.0,87413.0,0.01143994]
[1766594229152,1.47947,87425.0,87413.0,0.02323994]
[1766594229361,0.01143667,87438.0,87425.0,0.000549]
[1766594229564,1.89e-06,87433.0,87425.0,0.01176]
[1766594231416,1.89e-06,87433.0,87423.0,0.01143863]
[1766594231664,1.89e-06,87433.0,87426.0,0.0118]
[1766594232457,1.89e-06,87433.0,87426.0,0.08042926]
[1766594232797,1.89e-06,87433.0,87426.0,0.0118]
[1766594233097,1.89e-06,87433.0,87388.0,0.45772783]
[1766594233098,0.01143745,87432.0,87414.0,0.01143981]
[1766594233310,0.06862494,87432.0,87421.0,0.01176]
[1766594233481,0.06862494,87432.0,87415.0,0.06874748]
[1766594233482,0.01143785,87429.0,87422.0,0.01058272]
[1766594233686,0.01143785,87429.0,87415.0,0.00011]
[1766594233687,0.01143785,87429.0,87423.0,0.01058272]
[1766594234033,0.22885374,87435.0,87419.0,0.01176]
[1766594234034,0.00011,87435.0,87424.0,0.01058272]
[1766594234223,0.0137197,87432.0,87425.0,0.01058272]
[1766594234337,0.0137197,87432.0,87426.0,0.01058272]
[1766594234542,0.00011,87435.0,87427.0,0.01058272]
[1766594234899,0.00011,87435.0,87422.0,0.01176]
[1766594234900,0.01154706,87435.0,87422.0,0.01176]
[1766594235056,0.00011,87435.0,87424.0,0.0114385]
[1766594235253,0.0137197,87436.0,87435.0,0.000439]
[1766594235639,0.0137197,87436.0,87422.0,0.01176]
[1766594235843,0.01143706,87435.0,87422.0,0.01176]
[1766594236039,0.01143732,87433.0,87422.0,0.01176]
[1766594236256,0.01143759,87431.0,87422.0,0.01176]
[1766594236453,0.06862446,87433.0,87422.0,0.01176]
[1766594236891,0.01143745,87432.0,87422.0,0.01176]
[1766594237095,0.06862446,87433.0,87422.0,0.01176]
[1766594237713,0.01143732,87433.0,87422.0,0.01176]
[1766594237996,0.06862401,87433.0,87422.0,0.01176]
[1766594238150,0.01143745,87432.0,87422.0,0.01176]
[1766594238359,0.06862409,87433.0,87423.0,0.01176]
[1766594238531,0.06862502,87432.0,87423.0,0.01176]
[1766594238731,0.06862409,87433.0,87423.0,0.01176]
[1766594238942,0.01143732,87433.0,87423.0,0.01176]
[1766594239142,0.06862403,87433.0,87423.0,0.01176]
[1766594239354,0.01143745,87432.0,87423.0,0.01176]
[1766594239556,0.01143732,87433.0,87423.0,0.01176]
[1766594239760,0.01143745,87432.0,87423.0,0.01176]
[1766594239969,0.01143772,87430.0,87423.0,0.01176]
[1766594240162,0.01143759,87431.0,87423.0,0.01176]
[1766594240358,0.06862557,87431.0,87423.0,0.01176]
[1766594240622,0.01143759,87431.0,87423.0,0.01176]
[1766594240804,0.06862534,87432.0,87416.0,0.01143955]
[1766594240805,0.01143745,87432.0,87417.0,0.01143942]
[1766594241054,0.01143732,87433.0,87418.0,0.01176]
[1766594241273,0.06862382,87434.0,87418.0,0.01176]
[1766594241274,0.01143798,87428.0,87418.0,0.01176]
[1766594241519,0.01143798,87428.0,87415.0,0.00011]
[1766594241520,0.01143798,87428.0,87419.0,0.01176]
[1766594241735,1.70821432,87434.0,87415.0,0.00011]
[1766594241736,0.0137197,87421.0,87415.0,0.00011]
[1766594241941,0.01143929,87418.0,87415.0,0.00011]
[1766594242157,0.01154916,87419.0,87415.0,0.00011]
[1766594242329,0.01143902,87420.0,87415.0,0.00011]
[1766594242560,0.01143929,87418.0,87415.0,0.00011]
[1766594242765,0.0686358,87418.0,87415.0,0.00011]
[1766594243169,0.02515859,87421.0,87415.0,0.00011]
[1766594243170,0.08235349,87421.0,87415.0,0.00011]
[1766594243379,0.01143902,87420.0,87415.0,0.00011]
[1766594243802,0.01143876,87422.0,87415.0,0.00011]
[1766594243803,0.0137197,87417.0,87415.0,0.00011]
[1766594244007,0.05720039,87412.0,87395.0,0.05721131]
[1766594244208,0.02515912,87417.0,87400.0,0.01144164]
[1766594244415,0.0137197,87416.0,87406.0,0.12916]
[1766594244617,0.01143863,87423.0,87407.0,0.01176]
[1766594244820,1.4931897,87436.0,87416.0,0.00055]
[1766594244821,0.0137197,87421.0,87416.0,0.00055]
[1766594245026,1.4931897,87436.0,87416.0,0.00055]
[1766594245027,0.00011,87434.0,87416.0,0.00055]
[1766594245250,0.00011,87434.0,87419.0,0.01143916]
[1766594245485,0.01143732,87433.0,87420.0,0.01176]
[1766594245710,0.06873377,87434.0,87420.0,0.01176]
[1766594245711,0.00011,87434.0,87420.0,0.02319902]
[1766594245981,0.01143785,87429.0,87408.0,0.0114406]
[1766594246176,0.01143772,87430.0,87415.0,0.01176]
[1766594246578,0.22874686,87433.0,87415.0,0.01176]
[1766594246579,0.01143811,87427.0,87415.0,0.01176]
[1766594246784,0.06862761,87429.0,87416.0,0.01060244]
[1766594246785,0.02515846,87422.0,87416.0,0.01060244]
[1766594246936,0.02515846,87422.0,87417.0,0.01005344]
[1766594246937,0.0137197,87422.0,87417.0,0.01005344]
[1766594247115,0.0137197,87422.0,87414.0,0.00011]
[1766594248512,0.0571917,87426.0,87414.0,0.00011]
[1766594248513,0.06862732,87429.0,87422.0,0.001099]
[1766594248714,0.01143772,87430.0,87422.0,0.001099]
[1766594248956,0.0137197,87425.0,87414.0,0.06874872]
[1766594249121,0.00627745,87425.0,87414.0,0.06874872]
[1766594249344,0.00627745,87425.0,87414.0,0.01154981]
[1766594249544,0.0114385,87424.0,87414.0,0.00011]
[1766594249745,0.01143863,87423.0,87414.0,0.00011]
[1766594249918,0.07490777,87425.0,87414.0,0.00011]
[1766594249919,0.0114385,87424.0,87414.0,0.00011]
[1766594250120,0.07490777,87425.0,87414.0,0.00011]
[1766594250535,0.0114385,87424.0,87414.0,0.00011]
[1766594250726,0.01143929,87418.0,87414.0,0.00011]
[1766594250972,0.068635,87419.0,87415.0,0.01172]
[1766594251141,0.01143929,87418.0,87415.0,0.01172]
[1766594251950,0.06863444,87420.0,87415.0,0.01172]
[1766594252152,0.01143916,87419.0,87415.0,0.01172]
[1766594252352,0.01143902,87420.0,87415.0,0.01172]
[1766594252671,0.01143916,87419.0,87415.0,0.01172]
[1766594252829,0.06863457,87420.0,87415.0,0.01172]
[1766594253254,0.06147298,87471.0,87420.0,0.000549]
[1766594253255,0.06862961,87426.0,87420.0,0.000549]
[1766594253475,1.39742,87430.0,87416.0,0.02315955]
[1766594253680,0.02515807,87425.0,87414.0,0.00011]
[1766594253824,0.02515807,87425.0,87416.0,0.01172]
[1766594253825,0.01143876,87422.0,87416.0,0.01172]
[1766594254027,0.0686326,87422.0,87416.0,0.01172]
[1766594254326,1.46605502,87419.0,87407.0,0.04576]
[1766594254522,0.07091176,87425.0,87407.0,0.04576]
[1766594254523,1.39753,87434.0,87419.0,0.000549]
[1766594254738,1.39753,87434.0,87420.0,0.01143902]
[1766594254739,0.00011,87434.0,87420.0,0.01143902]
[1766594254929,0.0137197,87433.0,87421.0,0.02315889]
[1766594255349,0.00011,87434.0,87421.0,0.02315889]
[1766594255350,0.00011,87434.0,87433.0,0.00055]
[1766594255574,1.39742,87444.0,87433.0,0.00055]
[1766594255575,0.01143667,87438.0,87433.0,0.00055]
[1766594255775,0.01143602,87443.0,87425.0,0.05719187]
[1766594255975,0.0137197,87440.0,87427.0,0.01143811]
[1766594256201,0.0137197,87440.0,87427.0,0.05719044]
[1766594256533,0.01382622,87440.0,87426.0,0.06862821]
[1766594256749,0.01382622,87440.0,87429.0,0.01143785]
[1766594257378,0.06861985,87439.0,87423.0,0.01143863]
[1766594257576,0.01143667,87438.0,87421.0,0.06891416]
[1766594257729,0.05718587,87435.0,87421.0,0.01172]
[1766594257928,0.22873611,87437.0,87422.0,0.01172]
[1766594258131,0.01172,87436.0,87422.0,0.01172]
[1766594258330,0.05718722,87433.0,87422.0,0.01172]
[1766594258535,1.36634,87435.0,87423.0,0.01143863]
[1766594258737,1.36634,87435.0,87411.0,0.1461]
[1766594258738,0.01382622,87440.0,87435.0,0.000549]
[1766594258938,0.01382622,87440.0,87436.0,0.01061674]
[1766594259100,0.0114368,87437.0,87424.0,0.01172]
[1766594260007,0.01143693,87436.0,87424.0,0.01172]
[1766594260242,0.01143706,87435.0,87424.0,0.01172]
[1766594260443,0.05718795,87431.0,87424.0,0.01172]
[1766594260744,0.01143706,87435.0,87418.0,0.01172]
[1766594260918,0.01143706,87435.0,87418.0,0.01183]
[1766594260919,0.01143745,87432.0,87418.0,0.01183]
[1766594261132,0.01143759,87431.0,87418.0,0.01183]
[1766594261331,0.06862484,87432.0,87418.0,0.01183]
[1766594261947,0.01143811,87427.0,87418.0,0.01183]
[1766594262148,0.01143772,87430.0,87418.0,0.01183]
[1766594262356,0.01143785,87429.0,87418.0,0.01183]
[1766594262852,0.06862667,87430.0,87418.0,0.01183]
[1766594263276,0.01143785,87429.0,87418.0,0.01183]
[1766594263508,0.01143785,87429.0,87412.0,0.06863982]
[1766594263509,0.06863674,87417.0,87402.0,0.01144138]
[1766594263698,0.06863674,87417.0,87403.0,0.01172]
[1766594263699,0.01143955,87416.0,87403.0,0.01172]
[1766594263910,0.01143994,87413.0,87403.0,0.01172]
[1766594264228,0.07092062,87412.0,87403.0,0.01172]
[1766594264445,0.0560346,87412.0,87403.0,0.01172]
[1766594264644,0.0114402,87411.0,87396.0,0.0002528]
[1766594264861,0.0114402,87411.0,87401.0,0.01172]
[1766594264862,0.01144046,87409.0,87401.0,0.01172]